bitfinex-derivatives/quotes_BTCF0:USTF0_20250125
["timestamp","ask_amount","ask_price","bid_price","bid_amount"]
[1737828075884,0.51346838,104920.0,104910.0,0.154534]
[1737828079895,0.51346838,104920.0,104910.0,0.20658857]
[1737828080703,0.36094338,104920.0,104910.0,0.20658857]
[1737828082395,0.56551695,104920.0,104910.0,0.154534]
[1737828082702,0.51346238,104920.0,104910.0,0.154534]
[1737828082903,0.00014338,104920.0,104910.0,0.154534]
[1737828083703,0.00014338,104920.0,104910.0,0.20658857]
[1737828086498,0.00014338,104920.0,104910.0,0.56738857]
[1737828087905,0.00014338,104920.0,104910.0,0.5946348]
[1737828091409,0.00014338,104920.0,104910.0,0.2338348]
[1737828093503,0.00014338,104920.0,104910.0,0.5946348]
[1737828096710,0.00014338,104920.0,104910.0,0.515334]
[1737828096899,0.00014338,104920.0,104910.0,0.154534]
[1737828097613,0.00014338,104920.0,104910.0,0.2338348]
[1737828098714,0.00014338,104920.0,104910.0,0.154534]
[1737828102716,0.00014338,104920.0,104910.0,0.2338348]
[1737828103907,0.00014338,104920.0,104910.0,0.5946348]
[1737828106106,0.00014338,104920.0,104910.0,0.2338348]
[1737828108514,0.00014338,104920.0,104910.0,0.5946348]
[1737828108817,0.00014338,104920.0,104910.0,0.2338348]
[1737828109711,0.00014338,104920.0,104910.0,0.20657691]
[1737828111627,0.00014338,104920.0,104910.0,0.56737691]
[1737828112517,0.00014338,104920.0,104910.0,0.20657691]
[1737828118118,0.00014338,104920.0,104910.0,0.56737691]
[1737828133043,0.00014338,104920.0,104910.0,0.60908764]
[1737828133245,0.00014338,104920.0,104910.0,0.56737691]
[1737828136147,0.00014338,104920.0,104910.0,0.60908754]
[1737828137742,0.00014338,104920.0,104910.0,0.56737691]
[1737828137945,0.00014338,104920.0,104910.0,0.59967691]
[1737828141650,0.00014338,104920.0,104910.0,0.65171982]
[1737828142556,0.00014338,104920.0,104910.0,0.59967691]
[1737828142948,0.00014338,104920.0,104910.0,0.65171982]
[1737828144754,0.00014338,104920.0,104910.0,0.59967691]
[1737828152160,0.00014338,104920.0,104910.0,0.69342923]
[1737828152360,0.0633,104940.0,104930.0,0.152505]
[1737828152562,0.0633,104940.0,104930.0,0.56534791]
[1737828153759,0.0309,104940.0,104930.0,0.56534791]
[1737828157861,0.03224338,104950.0,104940.0,0.15249]
[1737828158062,0.03224338,104950.0,104940.0,0.20453291]
[1737828158959,0.03324338,104950.0,104940.0,0.20453291]
[1737828159853,0.03324338,104950.0,104940.0,0.61737582]
[1737828160059,0.00114338,104950.0,104940.0,0.61737582]
[1737828160357,0.00114338,104950.0,104940.0,0.64797582]
[1737828162166,0.00114338,104950.0,104940.0,0.86497582]
[1737828162360,0.06263016,104960.0,104950.0,0.152476]
[1737828162563,0.06263016,104960.0,104950.0,0.51767718]
[1737828163563,0.11467307,104960.0,104950.0,0.46563427]
[1737828163870,0.29903407,104960.0,104950.0,0.46563427]
[1737828164167,0.06263016,104960.0,104950.0,0.51767718]
[1737828164368,0.06363016,104960.0,104950.0,0.51767718]
[1737828168370,0.06363016,104960.0,104950.0,0.52570712]
[1737828177071,0.00243016,104960.0,104950.0,0.52570712]
[1737828177268,0.00243016,104960.0,104950.0,0.55670712]
[1737828178666,0.00243016,104960.0,104950.0,0.60875003]
[1737828179470,0.00243016,104960.0,104950.0,0.55670712]
[1737828179671,0.00243016,104960.0,104950.0,0.60875003]
[1737828179863,0.00243016,104960.0,104950.0,0.55670712]
[1737828180059,0.00243016,104960.0,104950.0,0.60875003]
[1737828180463,0.00243016,104960.0,104950.0,0.55670712]
[1737828181475,0.00243016,104960.0,104950.0,0.52570712]
[1737828181666,0.03523016,104960.0,104950.0,0.52570712]
[1737828181867,0.06803016,104960.0,104950.0,0.52570712]
[1737828182976,0.03523016,104960.0,104950.0,0.57775003]
[1737828183569,0.03523016,104960.0,104950.0,0.52570712]
[1737828184679,0.03523016,104960.0,104950.0,0.57775003]
[1737828184975,0.00243016,104960.0,104950.0,0.57775003]
[1737828185974,0.00243016,104960.0,104950.0,0.64175003]
[1737828187380,0.00243016,104960.0,104950.0,0.68344625]
[1737828187878,0.00243016,104960.0,104950.0,0.64175003]
[1737828188482,0.001,104960.0,104950.0,0.64175003]
[1737828189775,0.001,104960.0,104950.0,0.52570712]
[1737828189971,0.001,104960.0,104950.0,0.57775003]
[1737828190182,0.001,104960.0,104950.0,0.52570712]
[1737828190377,0.001,104960.0,104950.0,0.57775003]
[1737828192179,0.001,104960.0,104950.0,0.52570712]
[1737828192383,0.152476,104950.0,104940.0,0.20466929]
[1737828192579,0.218476,104950.0,104940.0,0.2567122]
[1737828192779,0.218476,104950.0,104940.0,0.6175122]
[1737828193479,0.219476,104950.0,104940.0,0.6485122]
[1737828194280,0.067,104950.0,104940.0,0.65705744]
[1737828197882,0.001,104950.0,104940.0,0.65705744]
[1737828198087,0.001,104950.0,104940.0,0.68835744]
[1737828199990,0.001,104950.0,104940.0,0.72115744]
[1737828203388,0.001,104950.0,104940.0,0.68835744]
[1737828203686,0.0319,104950.0,104940.0,0.68835744]
[1737828203878,0.0319,104950.0,104940.0,0.65705744]
[1737828209395,0.0309,104950.0,104940.0,0.65705744]
[1737828216397,0.182661,104960.0,104940.0,0.50457444]
[1737828216594,0.213354,104970.0,104960.0,0.152461]
[1737828216789,0.246054,104970.0,104960.0,0.25654682]
[1737828217101,0.246054,104970.0,104960.0,0.20450391]
[1737828218397,0.246054,104970.0,104960.0,0.25654682]
[1737828218898,0.246054,104970.0,104960.0,0.20450391]
[1737828219700,0.247054,104970.0,104960.0,0.20450391]
[1737828219905,0.247054,104970.0,104960.0,0.25654682]
[1737828221005,0.247054,104970.0,104960.0,0.20450391]
[1737828221507,0.247054,104970.0,104960.0,0.25654682]
[1737828224106,0.247054,104970.0,104960.0,0.2650395]
[1737828229405,0.214354,104970.0,104960.0,0.2650395]
[1737828229809,0.575154,104970.0,104960.0,0.21299659]
[1737828230107,0.607854,104970.0,104960.0,0.21299659]
[1737828230607,0.607854,104970.0,104960.0,0.2650395]
[1737828232995,0.247054,104970.0,104960.0,0.2650395]
[1737828236703,0.0619,104970.0,104960.0,0.2650395]
[1737828236900,0.0619,104970.0,104960.0,0.2977395]
[1737828242103,0.001,104970.0,104960.0,0.2977395]
[1737828243616,0.001,104970.0,104960.0,0.34978241]
[1737828243914,0.001,104970.0,104960.0,0.3303395]
[1737828245519,0.001,104970.0,104960.0,0.38238241]
[1737828246011,0.001,104970.0,104960.0,0.3303395]
[1737828249920,0.001,104970.0,104960.0,0.3621395]
[1737828250414,0.001,104970.0,104960.0,0.7229395]
[1737828250722,0.001,104970.0,104960.0,0.41418241]
[1737828251519,0.001,104970.0,104960.0,0.7229395]
[1737828252218,0.001,104970.0,104960.0,0.77498241]
[1737828252520,0.001,104970.0,104960.0,0.7229395]
[1737828253524,0.001,104970.0,104960.0,0.77498241]
[1737828257921,0.4538,104990.0,104980.0,0.152432]
[1737828258223,0.4538,104990.0,104980.0,0.25651782]
[1737828258928,0.4237,104990.0,104980.0,0.25651782]
[1737828259129,0.4247,104990.0,104980.0,0.25651782]
[1737828261332,0.0639,104990.0,104980.0,0.28921782]
[1737828264143,0.0639,104990.0,104980.0,0.29800135]
[1737828264340,0.216317,104990.0,104980.0,0.26530135]
[1737828265344,0.216317,104990.0,104980.0,0.21325844]
[1737828265540,0.216317,104990.0,104980.0,0.26530135]
[1737828277257,0.216317,104990.0,104980.0,0.21325844]
[1737828281159,0.216317,104990.0,104980.0,0.26530135]
[1737828282550,0.216317,104990.0,104980.0,0.21325844]
[1737828282957,0.0639,104990.0,104980.0,0.26530135]
[1737828285467,0.0639,104990.0,104980.0,0.21325844]
[1737828285658,0.0639,104990.0,104980.0,0.26530135]
[1737828286470,0.0639,104990.0,104980.0,0.21325844]
[1737828286655,0.26835991,104990.0,104980.0,0.00878353]
[1737828286968,0.152432,104980.0,104970.0,0.15258738]
[1737828287167,0.183332,104980.0,104970.0,0.15258738]
[1737828287468,0.183332,104980.0,104970.0,0.20463029]
[1737828288367,0.184332,104980.0,104970.0,0.20463029]
[1737828290072,0.545132,104980.0,104970.0,0.20463029]
[1737828290572,0.184332,104980.0,104970.0,0.21337296]
[1737828296673,0.545132,104980.0,104970.0,0.21337296]
[1737828298069,0.184332,104980.0,104970.0,0.21337296]
[1737828298278,0.184332,104980.0,104970.0,0.57417296]
[1737828298877,0.23637491,104980.0,104970.0,0.52213005]
[1737828299475,0.184332,104980.0,104970.0,0.57417296]
[1737828300674,0.184332,104980.0,104970.0,0.52213005]
[1737828301374,0.184332,104980.0,104950.0,0.152473]
[1737828301375,0.152467,104960.0,104950.0,0.152473]
[1737828302076,0.23670991,104960.0,104950.0,0.152473]
[1737828302372,0.184667,104960.0,104950.0,0.152473]
[1737828302572,0.185667,104960.0,104950.0,0.20451591]
[1737828303369,0.23770991,104960.0,104950.0,0.16159652]
[1737828303571,0.185667,104960.0,104950.0,0.21363943]
[1737828304273,0.23770991,104960.0,104950.0,0.00912352]
[1737828304478,0.23770991,104960.0,104940.0,0.59586929]
[1737828304673,0.0617,104950.0,104940.0,0.59586929]
[1737828306676,0.214176,104950.0,104940.0,0.23506929]
[1737828306871,0.26621891,104950.0,104940.0,0.00014338]
[1737828307979,0.26621891,104950.0,104940.0,0.05218629]
[1737828308380,0.26621891,104950.0,104940.0,0.0091083]
[1737828308581,0.62701891,104950.0,104940.0,0.0091083]
[1737828308781,0.15249,104940.0,104930.0,0.20597209]
[1737828308978,0.18339,104940.0,104930.0,0.21471299]
[1737828309170,0.23543291,104940.0,104930.0,0.21471299]
[1737828310481,0.23543291,104940.0,104930.0,0.16367008]
[1737828311983,0.23543291,104940.0,104930.0,0.1622409]
[1737828312583,0.23543291,104940.0,104930.0,0.0097409]
[1737828313283,0.59623291,104940.0,104930.0,0.0097409]
[1737828313887,0.00014338,104950.0,104930.0,0.41384291]
[1737828314180,0.1,105100.0,105040.0,0.398886]
[1737828314484,0.3608,105130.0,105100.0,0.152258]
[1737828314685,0.3608,105130.0,105090.0,0.3608]
[1737828314982,0.3608,105130.0,105110.0,0.152242]
[1737828315179,0.513014,105130.0,105120.0,0.15612873]
[1737828315385,0.152214,105130.0,105120.0,0.15612873]
[1737828315585,0.15235509,105130.0,105120.0,0.15612873]
[1737828315886,0.13440002,105130.0,105120.0,0.1580246]
[1737828316071,0.13440002,105130.0,105120.0,0.5188246]
[1737828316277,0.13440002,105130.0,105120.0,0.4398123]
[1737828316581,0.13440002,105130.0,105120.0,0.5188246]
[1737828317178,0.13540002,105130.0,105120.0,0.4398123]
[1737828317580,0.09839224,105130.0,105120.0,0.4398123]
[1737828317785,0.09739224,105130.0,105120.0,0.5188246]
[1737828317986,0.09839224,105130.0,105120.0,0.5188246]
[1737828318386,0.09839224,105130.0,105120.0,0.4398123]
[1737828318575,0.09839224,105130.0,105120.0,0.3608]
[1737828318781,0.09839224,105130.0,105120.0,0.4398123]
[1737828319086,0.09839224,105130.0,105120.0,0.3608]
[1737828321988,0.17740454,105130.0,105120.0,0.3608]
[1737828322684,0.152229,105120.0,105110.0,0.3608]
[1737828322890,0.2312413,105120.0,105110.0,0.3608]
[1737828323588,0.152229,105120.0,105110.0,0.3608]
[1737828325493,0.2312413,105120.0,105110.0,0.3608]
[1737828326396,0.2112413,105120.0,105110.0,0.3608]
[1737828326694,0.132229,105120.0,105110.0,0.3608]
[1737828326897,0.133229,105120.0,105110.0,0.3608]
[1737828327510,0.2122413,105120.0,105110.0,0.3608]
[1737828327711,0.2112413,105120.0,105110.0,0.3608]
[1737828328010,0.2122413,105120.0,105110.0,0.3608]
[1737828328214,0.133229,105120.0,105110.0,0.3608]
[1737828329214,0.2122413,105120.0,105110.0,0.3608]
[1737828332105,0.133229,105120.0,105110.0,0.3608]
[1737828332406,0.2122413,105120.0,105110.0,0.3608]
[1737828333010,0.133229,105120.0,105110.0,0.3608]
[1737828334102,0.2122413,105120.0,105110.0,0.3608]
[1737828337909,0.152243,105110.0,105100.0,0.36094338]
[1737828338111,0.2312553,105110.0,105100.0,0.36094338]
[1737828340518,0.2312553,105110.0,105100.0,0.00014338]
[1737828341116,0.152287,105080.0,105070.0,0.3608]
[1737828345319,0.2312993,105080.0,105070.0,0.3608]
[1737828350019,0.152287,105080.0,105070.0,0.3608]
[1737828350826,0.2312993,105080.0,105070.0,0.3608]
[1737828351127,0.152301,105070.0,105060.0,0.36094269]
[1737828352515,0.152301,105070.0,105060.0,0.36194269]
[1737828356522,0.152301,105070.0,105060.0,0.51425869]
[1737828356730,0.40791158,105070.0,105060.0,0.51425869]
[1737828357229,0.25561058,105070.0,105060.0,0.51425869]
[1737828358029,0.40791158,105070.0,105060.0,0.51425869]
[1737828358822,0.40791158,105070.0,105060.0,0.51394902]
[1737828360035,0.2659057,105070.0,105060.0,0.51394902]
[1737828361931,0.02912422,105070.0,105060.0,0.67197362]
[1737828362127,0.02912422,105070.0,105060.0,0.70497362]
[1737828362432,0.01703718,105070.0,105060.0,0.70497362]
[1737828363335,0.15904306,105070.0,105060.0,0.70497362]
[1737828363835,0.15904306,105070.0,105060.0,0.70512132]
[1737828364432,0.15904306,105070.0,105060.0,0.78413362]
[1737828364925,0.15904306,105070.0,105060.0,0.70497362]
[1737828366534,0.15904306,105070.0,105060.0,0.62596132]
[1737828367734,0.2375678,105080.0,105060.0,0.47364532]
[1737828367925,0.2375678,105080.0,105070.0,0.5921133]
[1737828368545,0.2375678,105080.0,105070.0,0.513101]
[1737828369037,0.2375678,105080.0,105070.0,0.5921133]
[1737828370128,0.2375678,105080.0,105070.0,0.5931133]
[1737828370336,0.2375678,105080.0,105070.0,0.514101]
[1737828371042,0.2375678,105080.0,105070.0,0.52148989]
[1737828371338,0.0852808,105080.0,105070.0,0.60050219]
[1737828371835,0.0852808,105080.0,105070.0,0.52148989]
[1737828372438,0.14200588,105080.0,105070.0,0.52148989]
[1737828372638,0.29429288,105080.0,105070.0,0.52148989]
[1737828373137,0.29429288,105080.0,105070.0,0.60050219]
[1737828375937,0.29429288,105080.0,105070.0,0.52148989]
[1737828376134,0.29442657,105090.0,105080.0,0.152287]
[1737828376334,0.29442657,105090.0,105080.0,0.513087]
[1737828380044,0.15242069,105090.0,105080.0,0.513087]
[1737828382348,0.18462069,105090.0,105080.0,0.513087]
[1737828383340,0.21732069,105090.0,105080.0,0.513087]
[1737828387342,0.21732069,105090.0,105080.0,0.5920993]
[1737828388641,0.21732069,105090.0,105080.0,0.513087]
[1737828389245,0.35932657,105090.0,105080.0,0.513087]
[1737828389447,0.35932657,105090.0,105080.0,0.514087]
[1737828393650,0.52977942,105090.0,105080.0,0.514087]
[1737828398947,0.52977942,105090.0,105080.0,0.3618]
[1737828401450,0.60879172,105090.0,105080.0,0.001]
[1737828401757,0.152287,105080.0,105070.0,0.38759509]
[1737828401957,0.2312993,105080.0,105070.0,0.38759509]
[1737828402756,0.2312993,105080.0,105060.0,0.75587997]
[1737828402757,0.152301,105070.0,105060.0,0.75587997]
[1737828402956,0.183501,105070.0,105060.0,0.75587997]
[1737828403566,0.183501,105070.0,105060.0,0.74853778]
[1737828405361,0.2625133,105070.0,105060.0,0.74853778]
[1737828405561,0.2625133,105070.0,105060.0,0.75053778]
[1737828406061,0.40508015,105070.0,105060.0,0.36294269]
[1737828406457,0.41217006,105070.0,105060.0,0.00214269]
[1737828406757,0.33888136,105070.0,105060.0,0.00214269]
[1737828407861,0.25986906,105070.0,105060.0,0.00214269]
[1737828408160,0.26086906,105070.0,105060.0,0.00014269]
[1737828409759,0.28875506,105070.0,105050.0,0.3608]
[1737828409963,0.1427123,105060.0,105050.0,0.3608]
[1737828410466,0.2217246,105060.0,105030.0,0.3608]
[1737828410657,0.0790123,105040.0,105030.0,0.3608]
[1737828410964,0.0790123,105040.0,105030.0,0.7216]
[1737828411175,0.07915499,105050.0,105030.0,0.7216]
[1737828411355,0.07915499,105050.0,105040.0,0.3608]
[1737828413873,0.16445519,105050.0,105020.0,0.42584269]
[1737828414163,0.0790123,105030.0,105020.0,0.42584269]
[1737828414468,0.0790123,105040.0,105020.0,0.42584269]
[1737828414763,0.0790123,105040.0,105030.0,0.3608]
[1737828415863,0.16445519,105050.0,105030.0,0.3608]
[1737828416964,0.0790123,105040.0,105020.0,0.42584269]
[1737828417165,0.16445519,105050.0,105020.0,0.43325621]
[1737828417359,0.17167205,105050.0,105020.0,0.43325621]
[1737828417560,0.0790123,105040.0,105020.0,0.43325621]
[1737828418070,0.0790123,105040.0,105020.0,0.39414269]
[1737828419468,0.0790123,105030.0,105020.0,0.36094269]
[1737828419669,0.0790123,105030.0,105020.0,0.00014269]
[1737828419868,0.1115123,105040.0,105020.0,0.00014269]
[1737828420165,0.1864723,105040.0,105020.0,0.36094269]
[1737828421372,0.1864723,105040.0,105020.0,0.36194269]
[1737828422058,0.1539723,105040.0,105020.0,0.36094269]
[1737828422468,0.53247205,105050.0,105020.0,0.36094269]
[1737828422666,0.07488,105040.0,105020.0,0.36094269]
[1737828423173,0.0853002,105040.0,105020.0,0.36094269]
[1737828423574,0.0853002,105040.0,105030.0,0.3608]
[1737828423871,0.0853002,105040.0,105030.0,0.3931]
[1737828425271,0.0853002,105040.0,105030.0,0.4721123]
[1737828426066,0.1423097,105050.0,105030.0,0.4721123]
[1737828426067,0.19895949,105050.0,105030.0,0.4721123]
[1737828426267,0.19895949,105050.0,105040.0,0.0655]
[1737828428467,0.19995949,105050.0,105040.0,0.0655]
[1737828429871,0.08644289,105050.0,105040.0,0.0655]
[1737828432779,0.11465929,105050.0,105040.0,0.0655]
[1737828437489,0.31376255,105050.0,105040.0,0.0655]
[1737828438572,0.31376255,105050.0,105040.0,0.0325]
[1737828438883,0.75357485,105050.0,105030.0,0.40030943]
[1737828439085,0.78537485,105050.0,105030.0,0.40030943]
[1737828441086,0.78437485,105050.0,105030.0,0.40030943]
[1737828441288,0.78537485,105050.0,105030.0,0.40030943]
[1737828441489,0.14216701,105040.0,105030.0,0.40030943]
[1737828444681,0.25633428,105040.0,105030.0,0.40030943]
[1737828444884,0.25633428,105040.0,105030.0,0.36800943]
[1737828447394,0.33534658,105040.0,105030.0,0.36800943]
[1737828447697,0.37589118,105040.0,105030.0,0.36800943]
[1737828448488,0.26172391,105040.0,105030.0,0.36800943]
[1737828448793,0.26172391,105040.0,105030.0,0.3608]
[1737828451283,0.69584391,105040.0,105020.0,0.77983778]
[1737828451489,0.0329,105030.0,105020.0,0.74853778]
[1737828451688,0.08487261,105030.0,105020.0,0.74853778]
[1737828453801,0.11210065,105030.0,105020.0,0.74853778]
[1737828454502,0.11210065,105030.0,105020.0,0.74953778]
[1737828455807,0.25426766,105030.0,105020.0,0.36194269]
[1737828456305,0.25426766,105030.0,105020.0,0.00114269]
[1737828456602,0.17506701,105030.0,105020.0,0.00114269]
[1737828458609,0.25426766,105030.0,105020.0,0.00114269]
[1737828458906,0.61506766,105030.0,105020.0,0.00114269]
[1737828459405,0.78552051,105030.0,105020.0,0.00114269]
[1737828464294,0.85824051,105030.0,105020.0,0.00114269]
[1737828465801,0.77903986,105030.0,105020.0,0.00114269]
[1737828466301,0.77903986,105030.0,105020.0,0.00014269]
[1737828467806,0.85824051,105030.0,105020.0,0.00014269]
[1737828468002,0.85924051,105030.0,105020.0,0.00014269]
[1737828468902,0.49824051,105030.0,105020.0,0.00014269]
[1737828470209,0.32778766,105030.0,105020.0,0.00014269]
[1737828472516,0.24858701,105030.0,105020.0,0.00014269]
[1737828472827,0.24758701,105030.0,105020.0,0.00014269]
[1737828473716,0.17506701,105030.0,105020.0,0.00014269]
[1737828474022,0.24738701,105030.0,105020.0,0.00014269]
[1737828474611,0.14216701,105030.0,105020.0,0.00014269]
[1737828474821,0.14216701,105030.0,105020.0,0.03224269]
[1737828475211,0.14216701,105030.0,105020.0,0.39304269]
[1737828476419,0.14216701,105030.0,105020.0,0.44500796]
[1737828483230,0.31261986,105030.0,105020.0,0.44500796]
[1737828483719,0.31261986,105030.0,105020.0,0.49697323]
[1737828484336,0.31261986,105030.0,105020.0,0.44500796]
[1737828484726,0.31261986,105030.0,105020.0,0.49697323]
[1737828485428,0.31261986,105030.0,105020.0,0.44500796]
[1737828485731,0.31261986,105030.0,105020.0,0.49697323]
[1737828486627,0.31261986,105030.0,105020.0,0.44500796]
[1737828489135,0.14216701,105030.0,105020.0,0.44500796]
[1737828489441,0.19413228,105030.0,105020.0,0.39304269]
[1737828490045,0.14216701,105030.0,105020.0,0.45257292]
[1737828500739,0.31261986,105030.0,105020.0,0.45257292]
[1737828502551,0.31261986,105030.0,105020.0,0.42047292]
[1737828503948,0.14216701,105030.0,105020.0,0.42047292]
[1737828507552,0.14202394,105030.0,105020.0,0.69051564]
[1737828507848,0.14202394,105030.0,105020.0,0.63855037]
[1737828511747,0.1997468,105040.0,105020.0,0.6939211]
[1737828511953,0.1997468,105040.0,105030.0,0.41276527]
[1737828513352,0.2007468,105040.0,105030.0,0.41276527]
[1737828515861,0.2007468,105040.0,105030.0,0.44436527]
[1737828528265,0.11514103,105040.0,105030.0,0.44436527]
[1737828531165,0.11514103,105040.0,105030.0,0.49633054]
[1737828531373,0.11514103,105040.0,105030.0,0.52633054]
[1737828531669,0.11514103,105040.0,105030.0,0.47436527]
[1737828533266,0.11514103,105040.0,105030.0,0.50769894]
[1737828536069,0.08656454,105040.0,105030.0,0.67745743]
[1737828539868,0.08656454,105040.0,105030.0,0.89894034]
[1737828547978,0.13852981,105040.0,105030.0,0.84697507]
[1737828548479,0.08656454,105040.0,105030.0,0.84697507]
[1737828549074,0.08556454,105040.0,105030.0,0.84697507]
[1737828549278,0.08556454,105040.0,105030.0,0.89894034]
[1737828549481,0.08556454,105040.0,105030.0,0.84697507]
[1737828549678,0.13752981,105040.0,105030.0,0.8136414]
[1737828551079,0.25167084,105040.0,105030.0,0.59215849]
[1737828551278,0.19970557,105040.0,105030.0,0.59215849]
[1737828554379,0.11414103,105040.0,105030.0,0.59215849]
[1737828555689,0.11414103,105040.0,105030.0,0.59315849]
[1737828557079,0.11414103,105040.0,105030.0,0.64512376]
[1737828557480,0.11414103,105040.0,105030.0,0.67612376]
[1737828558290,0.11414103,105040.0,105030.0,0.709459]
[1737828561693,0.11414103,105040.0,105030.0,0.67612376]
[1737828565085,0.19981346,105040.0,105030.0,0.72784818]
[1737828566891,0.25177873,105040.0,105030.0,0.61488291]
[1737828567196,0.31337873,105040.0,105030.0,0.58328291]
[1737828572796,0.365344,105040.0,105030.0,0.58328291]
[1737828572997,0.365344,105040.0,105030.0,0.22248291]
[1737828573305,0.42236947,105040.0,105030.0,0.17101634]
[1737828574199,0.4312723,105040.0,105030.0,0.17101634]
[1737828574603,0.37930703,105040.0,105030.0,0.17101634]
[1737828576306,0.43561885,105040.0,105030.0,0.001]
[1737828578108,0.38365358,105040.0,105030.0,0.05296527]
[1737828578607,0.38365358,105040.0,105030.0,0.41376527]
[1737828579606,0.38365358,105040.0,105030.0,0.56612527]
[1737828579809,0.37475075,105040.0,105030.0,0.56612527]
[1737828580010,0.2042979,105040.0,105030.0,0.56612527]
[1737828580705,0.1426979,105040.0,105030.0,0.61809054]
[1737828581013,0.1426979,105040.0,105030.0,0.68019054]
[1737828581197,0.1426979,105040.0,105030.0,0.71239054]
[1737828581503,9e-07,105040.0,105030.0,0.71239054]
[1737828582414,9e-07,105040.0,105030.0,0.76435581]
[1737828582611,9e-07,105040.0,105030.0,0.71239054]
[1737828583012,9e-07,105040.0,105030.0,0.76435581]
[1737828583307,0.44897109,105070.0,105040.0,0.15589581]
[1737828583502,0.44897109,105070.0,105060.0,0.97784654]
[1737828583503,0.41837109,105070.0,105060.0,0.97784654]
[1737828583912,0.41837109,105070.0,105060.0,1.01104654]
[1737828584714,0.001,105070.0,105060.0,1.01104654]
[1737828585413,0.03064269,105080.0,105060.0,0.85873054]
[1737828585615,0.03064269,105080.0,105070.0,0.56506727]
[1737828585815,0.03064269,105080.0,105070.0,0.59218554]
[1737828589411,0.10972623,105080.0,105070.0,0.513102]
[1737828589719,0.03064269,105080.0,105070.0,0.514102]
[1737828590621,0.03064269,105080.0,105070.0,0.59318554]
[1737828591413,0.03064269,105080.0,105070.0,0.153302]
[1737828593118,0.03064269,105080.0,105070.0,0.23238554]
[1737828594321,0.03064269,105080.0,105070.0,0.59318554]
[1737828596128,0.03064269,105080.0,105070.0,0.23238554]
[1737828597316,0.03064269,105080.0,105070.0,0.59318554]
[1737828600517,0.03064269,105080.0,105070.0,0.62538554]
[1737828604430,0.00014269,105080.0,105070.0,0.62538554]
[1737828605644,0.00014269,105080.0,105070.0,0.59819722]
[1737828608838,0.04772548,105080.0,105070.0,0.59819722]
[1737828616453,0.24677972,105080.0,105070.0,0.99420495]
[1737828621058,0.27677972,105080.0,105070.0,0.99420495]
[1737828623357,0.48096194,105080.0,105070.0,0.91010973]
[1737828623566,0.48096194,105080.0,105070.0,0.96200495]
[1737828623864,0.42906672,105080.0,105070.0,0.96200495]
[1737828624256,0.42906672,105080.0,105070.0,0.96100495]
[1737828624453,0.42906672,105080.0,105070.0,0.96200495]
[1737828625063,0.42906672,105080.0,105070.0,0.96100495]
[1737828625364,0.42906672,105080.0,105070.0,0.96200495]
[1737828627561,0.42456765,105080.0,105070.0,0.6838196]
[1737828628667,0.42456765,105080.0,105070.0,0.3230196]
[1737828631059,0.59496357,105080.0,105070.0,0.153302]
[1737828631757,0.59496357,105080.0,105070.0,0.001]
[1737828633858,1.00765879,105080.0,105070.0,0.001]
[1737828634158,1.07777879,105080.0,105070.0,0.001]
[1737828634864,1.02588357,105080.0,105070.0,0.001]
[1737828635263,0.85548765,105080.0,105070.0,0.001]
[1737828635564,0.90738287,105080.0,105070.0,0.001]
[1737828638562,0.93511884,105080.0,105070.0,0.001]
[1737828640861,0.152316,105060.0,105050.0,0.39144269]
[1737828641068,0.20421122,105060.0,105050.0,0.39144269]
[1737828641268,0.23681122,105060.0,105050.0,0.39144269]
[1737828642461,0.23681122,105060.0,105050.0,0.39444269]
[1737828642666,0.184916,105060.0,105050.0,0.39444269]
[1737828643070,0.23681122,105060.0,105050.0,0.39444269]
[1737828643374,0.28440307,105060.0,105050.0,0.39444269]
[1737828643673,0.23250785,105060.0,105050.0,0.44633791]
[1737828645876,0.31792492,105060.0,105050.0,0.44633791]
[1737828646363,0.31792492,105060.0,105050.0,0.39444269]
[1737828647059,0.32718496,105060.0,105050.0,0.39444269]
[1737828647263,0.32718496,105060.0,105050.0,0.44633791]
[1737828649373,0.29458496,105060.0,105050.0,0.44633791]
[1737828649873,0.40847439,105060.0,105050.0,0.44633791]
[1737828657865,0.32305732,105060.0,105050.0,0.44633791]
[1737828658678,0.32305732,105060.0,105050.0,0.39444269]
[1737828659572,0.37495254,105060.0,105050.0,0.39444269]
[1737828659773,0.40505254,105060.0,105050.0,0.39444269]
[1737828661681,0.54741432,105060.0,105050.0,0.39444269]
[1737828662974,0.54741432,105060.0,105050.0,0.36394269]
[1737828665283,0.60392081,105060.0,105050.0,0.36394269]
[1737828668276,0.46155903,105060.0,105050.0,0.36394269]
[1737828669584,0.40966381,105060.0,105050.0,0.36394269]
[1737828669774,0.40966381,105060.0,105050.0,0.41583791]
[1737828669973,0.40966381,105060.0,105050.0,0.44873791]
[1737828672788,0.40966381,105060.0,105050.0,0.39684269]
[1737828672978,0.40966381,105060.0,105050.0,0.56656029]
[1737828673783,0.40966381,105060.0,105050.0,0.61845551]
[1737828676780,0.55248682,105060.0,105050.0,0.61845551]
[1737828680695,0.60438204,105060.0,105050.0,0.56656029]
[1737828683104,0.55248682,105060.0,105050.0,0.56656029]
[1737828683893,0.55248682,105060.0,105050.0,0.61845551]
[1737828684690,0.55248682,105060.0,105050.0,0.56656029]
[1737828686497,0.60438204,105060.0,105050.0,0.56656029]
[1737828686698,0.55248682,105060.0,105050.0,0.61845551]
[1737828690388,0.60438204,105060.0,105050.0,0.53366029]
[1737828690792,0.55248682,105060.0,105050.0,0.53366029]
[1737828692799,0.60438204,105060.0,105050.0,0.53366029]
[1737828693299,0.43398612,105060.0,105050.0,0.53366029]
[1737828693800,0.3820909,105060.0,105050.0,0.53366029]
[1737828695394,0.84668134,105060.0,105050.0,0.17286029]
[1737828697005,1.01707726,105060.0,105050.0,0.17286029]
[1737828698800,0.91665648,105060.0,105040.0,0.50314377]
[1737828699004,0.68172144,105050.0,105040.0,0.50314377]
[1737828699204,0.62982622,105050.0,105040.0,0.50314377]
[1737828700101,0.68172144,105050.0,105040.0,0.50314377]
[1737828701805,0.68172144,105050.0,105030.0,0.00014269]
[1737828701806,0.152345,105040.0,105030.0,0.00014269]
[1737828702005,0.28783544,105040.0,105030.0,0.00014269]
[1737828704907,0.28783544,105040.0,105030.0,0.00114269]
[1737828706498,0.54438293,105040.0,105030.0,0.00114269]
[1737828708606,0.90518293,105040.0,105030.0,0.00114269]
[1737828709199,0.20426922,105020.0,105010.0,0.6354687]
[1737828709407,0.20426922,105020.0,105010.0,0.64491708]
[1737828710005,0.20426922,105020.0,105010.0,0.62973851]
[1737828710207,0.20426922,105020.0,105010.0,0.40344838]
[1737828710505,0.20526922,105020.0,105010.0,0.41244838]
[1737828712601,0.20526922,105020.0,105010.0,0.05164838]
[1737828713606,0.20526922,105020.0,105010.0,0.41244838]
[1737828714708,0.20526922,105020.0,105010.0,0.4643436]